[Event "Live Chess"]
[Site "Chess.com"]
[Date "2023.09.16"]
[Round "-"]
[White "RenatoMizuki"]
[Black "kadabraxadrez"]
[Result "1-0"]
[WhiteElo "1145"]
[BlackElo "956"]
[TimeControl "900+5"]
[EndTime "8:07:20 PDT"]
[Termination "RenatoMizuki venceu por xeque-mate"]

1. e4 {[%clk 0:15:00.5]} 1... e5 {[%clk 0:15:02.7]} 2. Nf3 {[%clk 0:15:02.3]}
2... Nc6 {[%clk 0:15:05.5]} 3. Bc4 {[%clk 0:15:04.5]} 3... Bc5 {[%clk
0:15:06.6]} 4. c3 {[%clk 0:15:05.9]} 4... Nf6 {[%clk 0:15:06.5]} 5. d4 {[%clk
0:15:01.6]} 5... exd4 {[%clk 0:15:07.8]} 6. cxd4 {[%clk 0:15:02]} 6... Bb4+
{[%clk 0:15:09.5]} 7. Bd2 {[%clk 0:15:03.9]} 7... Bxd2+ {[%clk 0:15:01.8]} 8.
Nbxd2 {[%clk 0:15:06.4]} 8... d5 {[%clk 0:15:03.3]} 9. exd5 {[%clk 0:15:05.2]}
9... Nxd5 {[%clk 0:15:06.2]} 10. Qe2+ {[%clk 0:15:06.2]} 10... Be6 {[%clk
0:15:08.8]} 11. Bxd5 {[%clk 0:14:57.5]} 11... Qxd5 {[%clk 0:15:08.2]} 12. Nb3
{[%clk 0:14:55.8]} 12... O-O {[%clk 0:14:59]} 13. O-O {[%clk 0:14:38.3]} 13...
Rfe8 {[%clk 0:14:52.8]} 14. Rfe1 {[%clk 0:14:16.8]} 14... g6 {[%clk 0:14:41.2]}
15. Qe3 {[%clk 0:13:56.5]} 15... Rad8 {[%clk 0:13:28.4]} 16. Re2 {[%clk
0:13:47.8]} 16... Nb4 {[%clk 0:12:45.8]} 17. a3 {[%clk 0:13:35.9]} 17... Nc6
{[%clk 0:12:36.4]} 18. Nbd2 {[%clk 0:13:24]} 18... b5 {[%clk 0:12:25.4]} 19.
Rae1 {[%clk 0:13:14.2]} 19... Re7 {[%clk 0:12:16.4]} 20. b3 {[%clk 0:12:55.6]}
20... a5 {[%clk 0:12:14.3]} 21. h3 {[%clk 0:12:27.3]} 21... Rde8 {[%clk
0:12:03.7]} 22. Qg5 {[%clk 0:12:02.1]} 22... Qxg5 {[%clk 0:11:56.5]} 23. Nxg5
{[%clk 0:12:04]} 23... Nxd4 {[%clk 0:11:52.2]} 24. Re4 {[%clk 0:11:59.9]} 24...
Nxb3 {[%clk 0:11:21]} 25. Nxb3 {[%clk 0:11:55.7]} 25... Bxb3 {[%clk 0:11:23.5]}
26. Rxe7 {[%clk 0:11:57.4]} 26... Rxe7 {[%clk 0:11:26.4]} 27. Rxe7 {[%clk
0:11:59.4]} 27... Kg7 {[%clk 0:11:17.9]} 28. Rxc7 {[%clk 0:11:52.1]} 28... Kf6
{[%clk 0:11:17.2]} 29. Nxh7+ {[%clk 0:11:47.7]} 29... Ke6 {[%clk 0:11:18]} 30.
f4 {[%clk 0:11:47.7]} 30... b4 {[%clk 0:11:18.5]} 31. axb4 {[%clk 0:11:41.4]}
31... axb4 {[%clk 0:11:20.8]} 32. Rb7 {[%clk 0:11:43.5]} 32... Bd5 {[%clk
0:10:52.2]} 33. Rxb4 {[%clk 0:11:30.9]} 33... f5 {[%clk 0:10:54.2]} 34. Ng5+
{[%clk 0:11:31.7]} 34... Kf6 {[%clk 0:10:56.3]} 35. Rb6+ {[%clk 0:11:27.9]}
35... Ke7 {[%clk 0:10:59]} 36. Rxg6 {[%clk 0:11:29.7]} 36... Kf8 {[%clk
0:10:53.4]} 37. Ne6+ {[%clk 0:11:15.1]} 37... Kf7 {[%clk 0:10:39.3]} 38. Nc7
{[%clk 0:11:14.1]} 38... Bxg2 {[%clk 0:10:41.2]} 39. Rxg2 {[%clk 0:11:16.4]}
39... Ke7 {[%clk 0:10:41.6]} 40. Rg7+ {[%clk 0:11:18.7]} 40... Kf6 {[%clk
0:10:45.3]} 41. Rh7 {[%clk 0:11:21.1]} 41... Kg6 {[%clk 0:10:48.7]} 42. Rd7
{[%clk 0:11:24.4]} 42... Kh5 {[%clk 0:10:51.5]} 43. Kg2 {[%clk 0:11:28.2]} 43...
Kh4 {[%clk 0:10:55.6]} 44. Rh7# {[%clk 0:11:29.3]} 1-0

[Event "Live Chess"]
[Site "Chess.com"]
[Date "2023.09.16"]
[Round "-"]
[White "DaviLucasMoraisLima"]
[Black "kadabraxadrez"]
[Result "1-0"]
[WhiteElo "1233"]
[BlackElo "948"]
[TimeControl "900+5"]
[EndTime "8:09:24 PDT"]
[Termination "DaviLucasMoraisLima venceu por desistência"]

1. e4 {[%clk 0:15:00.5]} 1... e5 {[%clk 0:15:02.7]} 2. Bc4 {[%clk 0:15:02.4]}
2... Nf6 {[%clk 0:15:04]} 3. Nc3 {[%clk 0:15:04.6]} 3... Nc6 {[%clk 0:15:05.3]}
4. Nf3 {[%clk 0:15:06.5]} 4... Bc5 {[%clk 0:15:06.6]} 5. O-O {[%clk 0:15:09]}
5... O-O {[%clk 0:15:01]} 6. d3 {[%clk 0:15:10.5]} 6... d6 {[%clk 0:15:01.5]} 7.
Bg5 {[%clk 0:15:11.7]} 7... Bg4 {[%clk 0:14:54.3]} 8. Nd5 {[%clk 0:15:14.4]}
8... Qe7 {[%clk 0:14:38]} 9. Nxe7+ {[%clk 0:15:16.3]} 9... Kh8 {[%clk
0:14:33.2]} 10. Nxc6 {[%clk 0:15:18.6]} 10... bxc6 {[%clk 0:14:36.1]} 11. Bxf6
{[%clk 0:15:21.8]} 11... gxf6 {[%clk 0:14:36.9]} 12. h3 {[%clk 0:15:25.8]} 1-0

[Event "Live Chess"]
[Site "Chess.com"]
[Date "2023.09.16"]
[Round "-"]
[White "Timsoso"]
[Black "GigiAlmeidaXadrez"]
[Result "0-1"]
[WhiteElo "293"]
[BlackElo "1068"]
[TimeControl "900+5"]
[EndTime "8:14:12 PDT"]
[Termination "GigiAlmeidaXadrez venceu por xeque-mate"]

1. e4 {[%clk 0:14:57.8]} 1... c5 {[%clk 0:15:03.4]} 2. Nf3 {[%clk 0:15:01]} 2...
d6 {[%clk 0:15:06.4]} 3. Bc4 {[%clk 0:15:02.2]} 3... Nf6 {[%clk 0:15:09]} 4. Nc3
{[%clk 0:14:49.8]} 4... g6 {[%clk 0:15:10.8]} 5. O-O {[%clk 0:14:41]} 5... Bg7
{[%clk 0:15:13.2]} 6. Ne5 {[%clk 0:14:27.9]} 6... dxe5 {[%clk 0:15:12.8]} 7. Qf3
{[%clk 0:14:22]} 7... O-O {[%clk 0:14:58.8]} 8. Bd3 {[%clk 0:13:57.4]} 8... Nc6
{[%clk 0:14:47.2]} 9. Be2 {[%clk 0:13:45]} 9... Bg4 {[%clk 0:14:32.8]} 10. Qg3
{[%clk 0:13:38.1]} 10... Bxe2 {[%clk 0:14:26.6]} 11. Nxe2 {[%clk 0:13:39.6]}
11... Nxe4 {[%clk 0:14:21.3]} 12. Qe3 {[%clk 0:13:28.1]} 12... Qd5 {[%clk
0:14:14.6]} 13. Nf4 {[%clk 0:13:21.3]} 13... exf4 {[%clk 0:14:09.5]} 14. Qxf4
{[%clk 0:13:24.2]} 14... Qe5 {[%clk 0:13:52.7]} 15. Qf3 {[%clk 0:13:16.4]} 15...
Ng5 {[%clk 0:13:29.9]} 16. Qb3 {[%clk 0:13:09]} 16... b6 {[%clk 0:13:20.4]} 17.
d4 {[%clk 0:13:11]} 17... Qxd4 {[%clk 0:13:18.2]} 18. Bxg5 {[%clk 0:13:12.8]}
18... Qxb2 {[%clk 0:12:57.5]} 19. Qe3 {[%clk 0:13:07.6]} 19... e6 {[%clk
0:12:43.7]} 20. Qc1 {[%clk 0:12:59]} 20... Qxc1 {[%clk 0:12:39.4]} 21. Bxc1
{[%clk 0:12:56.4]} 21... Bxa1 {[%clk 0:12:39.7]} 22. Ba3 {[%clk 0:12:55.3]}
22... Bg7 {[%clk 0:12:40.7]} 23. Rb1 {[%clk 0:12:49.9]} 23... Rfd8 {[%clk
0:12:37.9]} 24. Bc1 {[%clk 0:12:40.8]} 24... Rd1# {[%clk 0:12:37]} 0-1

[Event "Live Chess"]
[Site "Chess.com"]
[Date "2023.09.16"]
[Round "-"]
[White "DaviLucasMoraisLima"]
[Black "RenatoMizuki"]
[Result "1/2-1/2"]
[WhiteElo "1231"]
[BlackElo "1147"]
[TimeControl "900+5"]
[EndTime "8:16:46 PDT"]
[Termination "Partida empatada por acordo"]

1. e4 {[%clk 0:15:01.8]} 1... e5 {[%clk 0:15:04.4]} 2. Bc4 {[%clk 0:15:02.3]}
2... Nc6 {[%clk 0:15:07.1]} 3. Qh5 {[%clk 0:15:05.2]} 3... g6 {[%clk 0:15:07.7]}
4. Qf3 {[%clk 0:15:08.6]} 4... Nf6 {[%clk 0:15:09.3]} 5. d3 {[%clk 0:15:11.5]}
5... Nd4 {[%clk 0:15:07.8]} 6. Qd1 {[%clk 0:15:13.5]} 6... a6 {[%clk 0:15:00.3]}
7. c3 {[%clk 0:15:15.4]} 7... Nc6 {[%clk 0:15:01.6]} 8. Bg5 {[%clk 0:14:59]}
8... Bg7 {[%clk 0:14:59.6]} 9. d4 {[%clk 0:14:53.6]} 9... O-O {[%clk 0:14:45.4]}
10. dxe5 {[%clk 0:14:54.7]} 10... Nxe5 {[%clk 0:14:47.7]} 11. Qd4 {[%clk
0:14:57]} 11... Nxc4 {[%clk 0:14:44.3]} 12. Qxc4 {[%clk 0:14:59.4]} 12... b5
{[%clk 0:14:44.4]} 13. Qe2 {[%clk 0:15:01]} 13... h6 {[%clk 0:14:42.1]} 14. Bh4
{[%clk 0:15:03.2]} 14... d6 {[%clk 0:14:40.3]} 15. Nf3 {[%clk 0:14:44.1]} 15...
Qd7 {[%clk 0:14:29.8]} 16. e5 {[%clk 0:14:45.4]} 16... dxe5 {[%clk 0:14:29.8]}
17. Nxe5 {[%clk 0:14:48.3]} 17... Re8 {[%clk 0:14:32.2]} 18. Nxd7 {[%clk
0:14:47.4]} 18... Rxe2+ {[%clk 0:14:33]} 19. Kxe2 {[%clk 0:14:49.8]} 19... Bxd7
{[%clk 0:14:33.8]} 20. Kf1 {[%clk 0:14:44.3]} 20... Re8 {[%clk 0:14:32.5]} 21.
Nd2 {[%clk 0:14:43.4]} 21... Ne4 {[%clk 0:14:16.8]} 22. Nxe4 {[%clk 0:14:44.3]}
22... Rxe4 {[%clk 0:14:20.9]} 23. Re1 {[%clk 0:14:47.8]} 23... Rxh4 {[%clk
0:14:21.7]} 24. Re7 {[%clk 0:14:50.2]} 24... Bc6 {[%clk 0:14:02.6]} 25. Rxc7
{[%clk 0:14:52]} 25... Be8 {[%clk 0:14:04.9]} 26. Rc8 {[%clk 0:14:54.6]} 26...
Kf8 {[%clk 0:13:18.3]} 27. g3 {[%clk 0:14:54.8]} 27... Re4 {[%clk 0:13:16.2]}
28. Kg2 {[%clk 0:14:57.1]} 28... f5 {[%clk 0:13:14.8]} 29. f3 {[%clk 0:14:56.8]}
29... Re2+ {[%clk 0:13:15.7]} 30. Kf1 {[%clk 0:14:58]} 30... Rxb2 {[%clk
0:13:18]} 31. a3 {[%clk 0:14:54.1]} 1/2-1/2